bitfinex/quotes_BTCUSD_20220213
["timestamp","ask_amount","ask_price","bid_price","bid_amount"]
[1644733489892,0.58069846,42282.0,42274.0,0.0004452]
[1644733489893,0.00044513,42280.0,42274.0,0.0004452]
[1644733490797,0.32102357,42282.0,42272.0,0.20121037]
[1644733490992,0.32102357,42282.0,42274.0,0.0004452]
[1644733491192,0.00044514,42280.0,42274.0,0.0004452]
[1644733492048,0.32102357,42282.0,42273.0,0.20121037]
[1644733492248,0.45986768,42283.0,42273.0,0.20121037]
[1644733492249,0.00044514,42280.0,42274.0,0.0004452]
[1644733493251,0.249518,42282.0,42273.0,0.20121037]
[1644733493456,0.00044514,42280.0,42274.0,0.0004452]
[1644733494453,0.20120988,42282.0,42273.0,0.20121037]
[1644733494654,0.00044514,42280.0,42274.0,0.0004452]
[1644733495553,0.20117538,42282.0,42273.0,0.20116806]
[1644733495797,0.00044514,42280.0,42274.0,0.0004452]
[1644733496492,0.27946755,42280.0,42274.0,0.0004452]
[1644733496890,0.27902241,42280.0,42273.0,0.20116806]
[1644733497091,0.27946755,42280.0,42274.0,0.0004452]
[1644733498091,0.27902241,42280.0,42273.0,0.20116806]
[1644733498292,0.27946755,42280.0,42274.0,0.0004452]
[1644733499294,0.27946755,42280.0,42273.0,0.20116806]
[1644733499295,0.20117538,42282.0,42275.0,0.20116806]
[1644733499542,0.2586578,42283.0,42275.0,0.20116806]
[1644733499543,0.00044514,42280.0,42275.0,0.20116806]
[1644733499750,0.00044514,42280.0,42276.0,0.20116806]
[1644733499944,0.00044514,42280.0,42277.0,0.20116806]
[1644733500144,0.00044514,42280.0,42278.0,0.20116806]
[1644733500346,0.00044514,42280.0,42279.0,0.19167123]
[1644733500546,0.2586578,42283.0,42280.0,0.07324713]
[1644733500747,0.00044513,42281.0,42280.0,0.07324713]
[1644733501153,0.00044513,42281.0,42280.0,0.88939357]
[1644733501545,0.00044513,42281.0,42280.0,0.68822551]
[1644733501745,0.2586578,42283.0,42280.0,0.68822551]
[1644733501946,0.25910292,42283.0,42281.0,0.53188245]
[1644733502746,0.2586578,42283.0,42281.0,0.53188245]
[1644733503147,0.00044511,42284.0,42281.0,0.53188245]
[1644733503596,0.00044511,42284.0,42281.0,0.20118345]
[1644733503996,0.00023122,42286.0,42280.0,0.32753058]
[1644733504198,0.20117538,42287.0,42280.0,0.32753058]
[1644733504400,0.00044511,42285.0,42280.0,0.32753058]
[1644733505200,0.20117538,42286.0,42280.0,0.32753058]
[1644733505402,0.00044511,42285.0,42280.0,0.32753058]
[1644733506405,0.00023122,42286.0,42280.0,0.32753058]
[1644733506602,0.20117538,42287.0,42280.0,0.32753058]
[1644733508751,0.20117538,42287.0,42280.0,0.12634713]
[1644733509250,0.00044465,42286.0,42280.0,0.12634713]
[1644733509451,0.00067587,42286.0,42280.0,0.12634713]
[1644733510052,0.00023122,42286.0,42281.0,0.47233729]
[1644733510351,0.00042366,42285.0,42281.0,0.47233729]
[1644733510993,0.00033767,42285.0,42281.0,0.47233729]
[1644733511198,0.00023122,42286.0,42281.0,0.47233729]
[1644733511395,0.00301391,42287.0,42281.0,0.47233729]
[1644733511598,0.00278269,42287.0,42281.0,0.20118345]
[1644733511896,0.00278269,42287.0,42280.0,0.32753058]
[1644733513396,0.00301391,42287.0,42280.0,0.32753058]
[1644733513599,0.00301391,42287.0,42280.0,0.12634713]
[1644733513999,0.00301391,42287.0,42280.0,0.0531]
[1644733515044,0.00345855,42287.0,42280.0,0.0531]
[1644733515447,0.5,42286.0,42279.0,0.18198713]
[1644733515646,0.26384711,42285.0,42279.0,0.18198713]
[1644733515848,0.26407833,42285.0,42279.0,0.18198713]
[1644733516046,0.26384711,42285.0,42279.0,0.18198713]
[1644733516248,0.26384711,42285.0,42278.0,0.00019459]
[1644733516450,0.249518,42284.0,42277.0,0.00019459]
[1644733516665,0.249518,42284.0,42276.0,0.00044475]
[1644733516851,0.249518,42284.0,42276.0,0.00063934]
[1644733517249,0.249518,42284.0,42276.0,0.00019459]
[1644733517449,0.249518,42284.0,42276.0,0.00044474]
[1644733517650,0.249518,42284.0,42276.0,0.20177926]
[1644733517849,0.249518,42284.0,42276.0,0.00063933]
[1644733517850,0.45059482,42284.0,42276.0,0.00063933]
[1644733518310,0.26407833,42285.0,42276.0,0.00063933]
[1644733518311,0.249518,42282.0,42276.0,0.00063933]
[1644733518494,0.30754164,42281.0,42275.0,0.00019459]
[1644733518695,0.26139227,42279.0,42276.0,0.00044474]
[1644733518895,0.55441399,42278.0,42276.0,0.00044474]
[1644733519094,0.27278713,42277.0,42276.0,0.00044474]
[1644733519294,0.52230513,42277.0,42276.0,0.00044474]
[1644733519697,0.52230513,42277.0,42272.0,0.00019459]
[1644733519896,0.52230513,42277.0,42274.0,0.00026491]
[1644733519897,0.249518,42276.0,42274.0,0.00026491]
[1644733520893,0.249518,42276.0,42272.0,0.00019459]
[1644733521094,0.249518,42276.0,42273.0,0.00026492]
[1644733521294,0.27278713,42277.0,42273.0,0.00026492]
[1644733521497,0.249518,42276.0,42273.0,0.00026492]
[1644733522154,0.27278713,42277.0,42272.0,0.00019459]
[1644733522348,0.27278713,42277.0,42272.0,0.00026493]
[1644733522549,0.27278713,42277.0,42272.0,0.00045952]
[1644733523352,0.27278713,42277.0,42272.0,0.00019459]
[1644733523550,0.27278713,42277.0,42272.0,0.0004443]
[1644733523752,0.27278713,42277.0,42272.0,0.00063889]
[1644733524051,0.249518,42276.0,42272.0,0.00063889]
[1644733524251,0.27278713,42277.0,42272.0,0.20177882]
[1644733524453,0.27278713,42277.0,42272.0,0.00019459]
[1644733524655,0.27278713,42277.0,42272.0,0.00044431]
[1644733524851,0.27278713,42277.0,42272.0,0.0006389]
[1644733525052,0.249518,42278.0,42272.0,0.0006389]
[1644733525654,0.249518,42278.0,42272.0,0.00019459]
[1644733525898,0.26139227,42279.0,42273.0,0.0004443]
[1644733526099,0.51332204,42278.0,42273.0,0.0004443]
[1644733526499,0.00279074,42277.0,42273.0,0.0004443]
[1644733526899,0.00279074,42277.0,42272.0,0.00019459]
[1644733527100,0.00279074,42277.0,42273.0,0.0004443]
[1644733527304,0.249518,42280.0,42273.0,0.0004443]
[1644733527500,0.249518,42279.0,42273.0,0.0004443]
[1644733527699,0.25997512,42281.0,42273.0,0.0004443]
[1644733528099,0.25997512,42281.0,42272.0,0.00019459]
[1644733528299,0.249518,42280.0,42275.0,0.00044429]
[1644733529300,0.25997512,42281.0,42272.0,0.00019459]
[1644733529543,0.249518,42280.0,42275.0,0.00044429]
[1644733530550,0.46364348,42282.0,42272.0,0.20133452]
[1644733530749,0.249518,42281.0,42275.0,0.00044429]
[1644733531147,0.51283456,42281.0,42275.0,0.00044429]
[1644733531649,0.51283456,42281.0,42275.0,0.00019459]
[1644733531848,0.51283456,42281.0,42276.0,0.00044428]
[1644733532248,0.249518,42281.0,42276.0,0.00044428]
[1644733532948,0.249518,42281.0,42275.0,0.00019459]
[1644733533150,0.249518,42280.0,42276.0,0.00044429]
[1644733533397,0.26256666,42282.0,42276.0,0.00044429]
[1644733533600,0.249518,42281.0,42276.0,0.00044429]
[1644733533996,0.51028259,42281.0,42275.0,0.00019459]
[1644733534197,0.25417682,42282.0,42276.0,0.00044429]
[1644733534397,0.249518,42281.0,42276.0,0.00044429]
[1644733535197,0.249518,42281.0,42275.0,0.00019459]
[1644733535398,0.249518,42281.0,42274.0,0.00354709]
[1644733535399,0.249518,42281.0,42276.0,0.00044429]
[1644733536502,0.249518,42281.0,42275.0,0.00019459]
[1644733536699,0.249518,42281.0,42277.0,0.00354681]
[1644733538153,0.249518,42281.0,42277.0,0.0037414]
[1644733539155,0.249518,42281.0,42277.0,0.00354681]
[1644733539454,0.249518,42281.0,42277.0,0.0037414]
[1644733539656,0.26186021,42280.0,42277.0,0.0037414]
[1644733539857,0.249518,42279.0,42277.0,0.0037414]
[1644733540057,0.249518,42279.0,42277.0,0.00354681]
[1644733541101,0.249518,42279.0,42276.0,0.00060342]
[1644733541300,0.249518,42279.0,42275.0,0.00268736]
[1644733541500,0.249518,42279.0,42276.0,0.00040883]
[1644733541700,0.249518,42279.0,42276.0,0.00060342]
[1644733542502,0.249518,42279.0,42276.0,0.00019459]
[1644733542704,0.249518,42279.0,42275.0,0.00309619]
[1644733543704,0.249518,42279.0,42275.0,0.00268736]
[1644733544005,0.249518,42279.0,42275.0,0.00309619]
[1644733544849,0.249518,42279.0,42275.0,0.00268736]
[1644733545048,0.249518,42279.0,42275.0,0.0031013]
[1644733545252,0.249518,42277.0,42275.0,0.0031013]
[1644733545449,0.249518,42277.0,42275.0,0.00055074]
[1644733545450,0.51438395,42277.0,42275.0,0.00055074]
[1644733545648,0.25874706,42276.0,42275.0,0.00055074]
[1644733545850,0.249518,42276.0,42275.0,0.00055074]
[1644733546050,0.249518,42276.0,42275.0,0.0001368]
[1644733546850,0.26583144,42278.0,42272.0,0.00019459]
[1644733547051,0.26583144,42278.0,42271.0,0.00317183]
[1644733547452,0.26583144,42278.0,42273.0,0.0004134]
[1644733547650,0.249518,42277.0,42273.0,0.0004134]
[1644733547854,0.26583144,42278.0,42273.0,0.0004134]
[1644733548051,0.249518,42277.0,42273.0,0.0004134]
[1644733548310,0.26583144,42278.0,42273.0,0.0004134]
[1644733548503,0.249518,42277.0,42272.0,0.00019459]
[1644733548703,0.249518,42277.0,42273.0,0.00043325]
[1644733549103,0.26583144,42278.0,42273.0,0.00043325]
[1644733549304,0.249518,42277.0,42273.0,0.00043325]
[1644733549706,0.249518,42277.0,42272.0,0.00019459]
[1644733549707,0.26583144,42278.0,42272.0,0.00019459]
[1644733549906,0.26583144,42278.0,42271.0,0.00317183]
[1644733551210,0.00212791,42277.0,42271.0,0.00317183]
[1644733552346,0.00212791,42277.0,42272.0,0.0004319]
[1644733552549,0.00212791,42277.0,42272.0,0.00062649]
[1644733553348,0.00212791,42277.0,42272.0,0.00019459]
[1644733553549,0.00212791,42277.0,42272.0,0.00043189]
[1644733553749,0.00212791,42277.0,42272.0,0.00062648]
[1644733554550,0.00212791,42277.0,42272.0,0.00019459]
[1644733554751,0.00212791,42277.0,42272.0,0.00043189]
[1644733554950,0.00212791,42277.0,42272.0,0.00062648]
[1644733555815,0.00212791,42277.0,42272.0,0.00060452]
[1644733556602,0.20107682,42279.0,42272.0,0.00060452]
[1644733556902,0.28341697,42280.0,42272.0,0.00060452]
[1644733556903,0.48449379,42280.0,42272.0,0.00019459]
[1644733557102,0.48449379,42280.0,42273.0,0.00040992]
[1644733557704,0.20107682,42280.0,42273.0,0.00060451]
[1644733558108,0.2536158,42282.0,42273.0,0.00060451]
[1644733558109,0.20322339,42282.0,42273.0,0.20133452]
[1644733558309,0.00214657,42282.0,42274.0,0.20154984]
[1644733558504,0.00214657,42282.0,42275.0,0.20113993]
[1644733558705,0.00214657,42282.0,42279.0,0.19347567]
[1644733560356,0.249518,42281.0,42279.0,0.19347567]
[1644733560555,0.20322339,42282.0,42279.0,0.19347567]
[1644733560755,0.00214657,42282.0,42279.0,0.19347567]
[1644733561956,0.00214657,42282.0,42277.0,0.20113993]
[1644733562458,0.20322339,42282.0,42276.0,0.20170871]
[1644733562656,0.20322339,42282.0,42276.0,0.00056878]
[1644733562657,0.20107682,42281.0,42276.0,0.00056878]
[1644733562856,0.20107682,42281.0,42276.0,0.00019459]
[1644733563056,0.20107682,42281.0,42276.0,0.00037502]
[1644733563309,0.26175986,42280.0,42276.0,0.00056961]
[1644733564102,0.20322339,42282.0,42276.0,0.20133452]
[1644733564303,0.20322339,42282.0,42276.0,0.20170954]
[1644733564903,0.72508024,42281.0,42276.0,0.00056961]
[1644733565404,0.72508024,42281.0,42276.0,0.00019459]
[1644733565603,0.72508024,42281.0,42276.0,0.00037916]
[1644733565803,0.72508024,42281.0,42276.0,0.00057375]
[1644733566406,0.45059482,42279.0,42276.0,0.00057375]
[1644733566606,0.20107682,42279.0,42278.0,0.00017686]
[1644733566807,0.45059482,42279.0,42278.0,0.00017686]
[1644733567052,0.72168373,42279.0,42278.0,0.00017686]
[1644733569256,0.52060691,42279.0,42278.0,0.00017686]
[1644733569856,0.77207614,42279.0,42278.0,0.00017686]
[1644733570056,0.52060691,42279.0,42278.0,0.00017686]
[1644733570657,0.4505474,42279.0,42278.0,0.00017686]
[1644733571106,0.72673958,42279.0,42278.0,0.00017686]
[1644733571599,0.249518,42278.0,42276.0,0.00037851]
[1644733571796,0.249518,42277.0,42276.0,0.00037851]
[1644733571996,0.20316264,42279.0,42276.0,0.00037851]
[1644733572197,0.249518,42278.0,42276.0,0.0005731]
[1644733572498,0.00213324,42279.0,42275.0,0.00037158]
[1644733572697,0.00213324,42279.0,42275.0,0.00055555]
[1644733572902,0.249518,42278.0,42275.0,0.00075014]
[1644733573097,0.249518,42278.0,42275.0,0.00055555]
[1644733573498,0.00213324,42279.0,42275.0,0.00055555]
[1644733573702,0.00213324,42279.0,42275.0,0.00037158]
[1644733573897,0.00213324,42279.0,42275.0,0.00017699]
[1644733574299,0.249518,42278.0,42275.0,0.00037158]
[1644733574555,0.00213324,42279.0,42275.0,0.00017699]
[1644733574755,0.00213324,42279.0,42275.0,0.00037158]
[1644733574958,0.249518,42278.0,42275.0,0.00017699]
[1644733575156,0.00213324,42279.0,42275.0,0.00075015]
[1644733575356,0.00213324,42279.0,42275.0,0.00055556]
[1644733575557,0.00213324,42279.0,42275.0,0.00075015]
[1644733575960,0.249518,42281.0,42280.0,0.00059493]
[1644733576158,0.45048284,42281.0,42280.0,0.00059493]
[1644733576761,0.249518,42281.0,42280.0,0.00059493]
[1644733578600,0.249518,42282.0,42280.0,0.00059493]
[1644733579099,0.00023122,42284.0,42280.0,0.00059493]
[1644733579100,0.20119606,42284.0,42280.0,0.00059493]
[1644733579298,0.249518,42283.0,42280.0,0.00059493]
[1644733579499,0.45048284,42283.0,42280.0,0.00059493]
[1644733580599,0.249518,42283.0,42280.0,0.00059493]
[1644733581299,0.45048284,42283.0,42280.0,0.00059493]
[1644733583861,0.249518,42281.0,42280.0,0.00059493]
[1644733584666,0.20096484,42283.0,42280.0,0.00059493]
[1644733585662,0.249518,42281.0,42280.0,0.00059493]
[1644733585905,0.249518,42282.0,42280.0,0.00059493]
[1644733586709,0.45048284,42283.0,42282.0,0.00015715]
[1644733587506,0.249518,42283.0,42282.0,0.00015715]
[1644733588206,0.45048284,42283.0,42282.0,0.00015715]
[1644733588608,0.249518,42283.0,42282.0,0.00015715]
[1644733588909,0.45048284,42283.0,42282.0,0.00015715]
[1644733589852,0.249518,42283.0,42282.0,0.00015715]
[1644733590052,0.45048284,42283.0,42282.0,0.00015715]
[1644733590251,0.37530045,42285.0,42282.0,0.00015715]
[1644733590252,0.46387422,42284.0,42282.0,0.00015715]
[1644733590452,0.249518,42283.0,42282.0,0.00015715]
[1644733595604,0.45048284,42283.0,42282.0,0.00015715]
[1644733596405,0.249518,42283.0,42282.0,0.00015715]
[1644733596606,0.20096484,42284.0,42282.0,0.00015715]
[1644733596908,0.12383122,42285.0,42282.0,0.00015715]
[1644733596909,0.00023122,42285.0,42282.0,0.00015715]
[1644733597163,0.00023122,42286.0,42285.0,0.00010424]
[1644733597357,0.00037848,42287.0,42285.0,0.66145822]
[1644733597558,0.00037848,42287.0,42286.0,0.06543023]
[1644733597758,0.30176307,42296.0,42286.0,0.06543023]
[1644733597759,0.20119606,42294.0,42286.0,0.06543023]
[1644733597958,0.00014991,42288.0,42287.0,0.20116039]
[1644733598159,0.00014991,42288.0,42287.0,0.53185939]
[1644733598360,0.00014991,42288.0,42287.0,0.330699]
[1644733598963,0.00023122,42292.0,42286.0,0.06543023]
[1644733599161,0.00023122,42289.0,42287.0,0.2828761]
[1644733599363,0.00014991,42290.0,42287.0,0.2828761]
[1644733600164,0.00023122,42293.0,42287.0,0.2828761]
[1644733600364,0.00016934,42291.0,42287.0,0.2828761]
[1644733601302,0.00023122,42293.0,42287.0,0.2828761]
[1644733601503,0.20119606,42295.0,42287.0,0.2828761]
[1644733601702,0.00043355,42291.0,42287.0,0.2828761]
[1644733602305,0.00036729,42291.0,42287.0,0.2828761]
[1644733602504,0.00023122,42294.0,42288.0,0.330699]
[1644733602705,0.20119606,42296.0,42288.0,0.383799]
[1644733602903,0.00023122,42295.0,42289.0,0.330699]
[1644733603104,0.00023122,42295.0,42290.0,0.29615384]
[1644733603403,0.37356923,42299.0,42290.0,0.29615384]
[1644733603404,0.20119606,42298.0,42290.0,0.29615384]
[1644733603603,0.00023122,42296.0,42292.0,0.22887014]
[1644733603805,0.00023122,42297.0,42292.0,0.22887014]
[1644733604203,0.20119606,42298.0,42292.0,0.22887014]
[1644733604405,0.00023122,42297.0,42292.0,0.22887014]
[1644733604663,0.20119606,42298.0,42292.0,0.22887014]
[1644733604866,0.00023122,42297.0,42292.0,0.22887014]
[1644733605064,0.20119606,42298.0,42293.0,0.26758279]
[1644733605264,0.00041013,42297.0,42292.0,0.22887014]
[1644733605464,0.00017891,42297.0,42293.0,0.26934121]
[1644733605764,0.00017891,42297.0,42292.0,0.22887014]
[1644733606065,0.7,42296.0,42287.0,0.35244904]
[1644733606264,0.20119606,42297.0,42287.0,0.23134904]
[1644733606469,0.00023122,42296.0,42287.0,0.23134904]
[1644733606665,0.00044358,42297.0,42290.0,0.00345691]
[1644733606864,0.00023122,42296.0,42290.0,0.00345691]
[1644733607064,0.00044358,42297.0,42290.0,0.00345691]
[1644733607065,0.0006748,42297.0,42290.0,0.00345691]
[1644733607264,0.00023122,42296.0,42290.0,0.00345691]
[1644733607469,0.00044358,42297.0,42292.0,0.20658868]
[1644733607470,0.00023122,42297.0,42292.0,0.20658868]
[1644733607664,0.00067481,42296.0,42292.0,0.20658868]
[1644733607965,0.00044359,42296.0,42292.0,0.20658868]
[1644733608605,0.00023122,42298.0,42292.0,0.47736152]
[1644733608805,0.00017942,42296.0,42292.0,0.20658868]
[1644733609605,0.00041064,42296.0,42292.0,0.20658868]
[1644733609805,0.00023122,42298.0,42292.0,0.20658868]
[1644733610008,0.00017942,42296.0,42292.0,0.20658868]
[1644733610205,0.00017942,42296.0,42292.0,0.48251087]
[1644733610809,0.00017942,42296.0,42292.0,0.20658868]
[1644733611104,0.00023122,42298.0,42292.0,0.20658868]
[1644733611305,0.00044595,42296.0,42294.0,0.00015709]
[1644733612156,0.00023122,42298.0,42294.0,0.00015709]
[1644733612356,0.00017886,42297.0,42294.0,0.00015709]
[1644733613458,0.00023122,42299.0,42294.0,0.00015709]
[1644733613658,0.00041008,42298.0,42294.0,0.00015709]
[1644733613860,0.00017886,42298.0,42294.0,0.00015709]
[1644733614558,0.20096484,42299.0,42294.0,0.00015709]
[1644733614759,0.24969686,42298.0,42294.0,0.00015709]
[1644733614960,0.00041008,42298.0,42294.0,0.00015709]
[1644733615163,0.00017886,42298.0,42294.0,0.00015709]
[1644733615662,0.24969686,42298.0,42294.0,0.00015709]
[1644733615929,0.249518,42298.0,42294.0,0.00015709]
[1644733616123,0.00044541,42298.0,42294.0,0.00015709]
[1644733616325,0.24996341,42298.0,42294.0,0.00015709]
[1644733616622,0.24996341,42298.0,42296.0,0.00333565]
[1644733617025,0.249518,42298.0,42296.0,0.00333565]
[1644733619129,0.00055592,42295.0,42291.0,0.00015715]
[1644733619660,0.00100135,42295.0,42291.0,0.00015715]
[1644733620461,0.249518,42294.0,42291.0,0.00015715]
[1644733620661,0.249518,42293.0,42291.0,0.00015715]
[1644733620859,0.25044426,42295.0,42291.0,0.00015715]
[1644733621062,0.00023122,42294.0,42291.0,0.00015715]
[1644733621260,0.249518,42294.0,42291.0,0.00015715]
[1644733621461,0.249518,42294.0,42285.0,0.23852537]
[1644733621661,0.00023122,42294.0,42285.0,0.23852537]
[1644733622061,0.00037036,42292.0,42285.0,0.23852537]
[1644733622262,0.00037036,42292.0,42285.0,4.8e-06]
[1644733622961,0.00023122,42294.0,42285.0,4.8e-06]
[1644733623161,0.20152076,42295.0,42285.0,4.8e-06]
[1644733623410,0.00037036,42292.0,42285.0,4.8e-06]
[1644733624210,0.00023122,42294.0,42285.0,4.8e-06]
[1644733624409,0.20096484,42294.0,42285.0,4.8e-06]
[1644733624612,0.00037036,42292.0,42285.0,4.8e-06]
[1644733625417,0.00023122,42294.0,42285.0,4.8e-06]
[1644733625614,0.00038228,42292.0,42285.0,4.8e-06]
[1644733626613,0.00133559,42291.0,42286.0,0.00015708]
[1644733626819,0.00156681,42291.0,42286.0,0.33085608]
[1644733627058,0.00156681,42291.0,42287.0,0.30311816]
[1644733627256,0.00156681,42291.0,42286.0,0.00015708]
[1644733630163,0.00156681,42291.0,42286.0,0.33085608]
[1644733630361,0.00156681,42291.0,42288.0,0.330699]
[1644733630566,0.00133559,42291.0,42287.0,0.29681538]
[1644733630807,0.00156681,42291.0,42286.0,0.00015708]
[1644733636053,0.00156681,42291.0,42285.0,4.8e-06]
[1644733641210,0.20237638,42291.0,42286.0,0.20110945]
[1644733642858,0.48411262,42290.0,42286.0,0.20110945]
[1644733643162,0.249518,42288.0,42286.0,0.00010529]
[1644733643358,0.0531,42287.0,42286.0,0.00010529]
[1644733643561,0.55375512,42287.0,42286.0,0.00010529]
[1644733644358,0.30423712,42287.0,42286.0,0.00010529]
[1644733644564,0.55375512,42287.0,42286.0,0.00010529]
[1644733644763,0.30423712,42287.0,42286.0,0.00010529]
[1644733645163,0.61428674,42287.0,42286.0,0.00010529]
[1644733645826,0.36314962,42287.0,42286.0,0.00010529]
[1644733650764,0.56399683,42287.0,42286.0,0.00010529]
[1644733651262,0.56663184,42287.0,42286.0,0.00010529]
[1644733651466,0.36578463,42287.0,42286.0,0.00010529]
[1644733652263,0.56663184,42287.0,42286.0,0.00010529]
[1644733653163,0.36578463,42287.0,42286.0,0.00010529]
[1644733653809,0.05573501,42287.0,42286.0,0.00010529]
[1644733654207,0.00263501,42287.0,42286.0,0.00010529]
[1644733656712,0.00343802,42287.0,42286.0,7.061e-05]
[1644733656913,0.00343802,42287.0,42286.0,0.07083994]
[1644733657479,0.00343802,42287.0,42286.0,0.40153894]
[1644733657657,0.00343802,42287.0,42286.0,0.45463894]
[1644733658459,0.00343802,42287.0,42286.0,0.12393994]
[1644733658864,0.00343802,42287.0,42286.0,0.07083994]
[1644733661206,0.00275213,42287.0,42286.0,0.07083994]
[1644733661607,0.00275213,42287.0,42286.0,0.40153894]
[1644733661804,0.00275213,42287.0,42286.0,0.07083994]
[1644733662404,0.00275213,42287.0,42286.0,0.40153894]
[1644733662606,0.00275213,42287.0,42286.0,0.07083994]
[1644733663207,0.00275213,42287.0,42286.0,0.40153894]
[1644733663705,0.00275213,42287.0,42286.0,0.07083994]
[1644733663906,0.00275213,42287.0,42286.0,0.40153894]
[1644733664111,0.00275213,42287.0,42286.0,0.07083994]
[1644733664307,0.00275213,42287.0,42286.0,0.40153894]
[1644733665169,0.00275213,42287.0,42286.0,0.40100726]
[1644733665371,0.00275213,42287.0,42286.0,0.07030826]
[1644733665570,0.00275213,42287.0,42286.0,0.40100726]
[1644733666169,0.00275213,42287.0,42285.0,4.8e-06]
[1644733666370,0.00275213,42287.0,42286.0,0.330643]
[1644733668171,0.00275213,42287.0,42285.0,1.3359224]
[1644733668606,0.00275213,42287.0,42285.0,0.0829224]
[1644733668804,0.00275213,42287.0,42285.0,4.8e-06]
[1644733674271,0.00275213,42287.0,42286.0,0.330643]
[1644733674872,0.00275213,42287.0,42285.0,4.8e-06]
[1644733677120,0.00275213,42287.0,42286.0,0.330643]
[1644733677713,0.00275213,42287.0,42285.0,0.20107563]
[1644733678712,0.00275213,42287.0,42286.0,0.330643]
[1644733679763,0.00275213,42287.0,42285.0,4.8e-06]
[1644733680961,0.00275213,42287.0,42286.0,0.330643]
[1644733681761,0.00275213,42287.0,42285.0,4.8e-06]
[1644733682161,0.00275213,42287.0,42286.0,0.330643]
[1644733685325,0.00275213,42287.0,42285.0,4.8e-06]
[1644733685727,0.00275213,42287.0,42286.0,0.330643]
[1644733685925,0.00275213,42287.0,42285.0,4.8e-06]
[1644733686127,0.00275213,42287.0,42286.0,0.330643]
[1644733686329,0.00275213,42287.0,42284.0,0.20107083]
[1644733686528,0.00275213,42287.0,42285.0,0.330643]
[1644733686928,0.00275213,42287.0,42284.0,0.20107083]
[1644733688562,0.00275213,42287.0,42285.0,0.330643]
[1644733688762,0.00275213,42287.0,42284.0,0.20107083]
[1644733688964,0.00275213,42287.0,42285.0,0.330643]
[1644733689664,0.00275213,42287.0,42284.0,0.20107083]
[1644733690467,0.00275213,42287.0,42285.0,0.20107083]
[1644733690913,0.00267292,42287.0,42285.0,0.20107083]
[1644733692412,0.00267292,42287.0,42286.0,0.20107083]
[1644733693412,0.00267292,42287.0,42286.0,0.53171383]
[1644733693813,0.00267292,42287.0,42285.0,0.00686152]
[1644733694014,0.00267292,42287.0,42286.0,0.53174987]
[1644733694416,0.00267292,42287.0,42286.0,0.330643]
[1644733694661,0.00267292,42287.0,42286.0,0.53177343]
[1644733694861,0.00267292,42287.0,42286.0,0.330643]
[1644733695066,0.00267292,42287.0,42286.0,0.20113061]
[1644733695266,0.00267292,42287.0,42286.0,0.53177361]
[1644733695461,0.00267292,42287.0,42286.0,0.330643]
[1644733696061,0.00267292,42287.0,42286.0,0.53177488]
[1644733696264,0.00267292,42287.0,42286.0,0.330643]
[1644733696664,0.00267292,42287.0,42286.0,0.53177519]
[1644733696864,0.00267292,42287.0,42286.0,0.330643]
[1644733699509,0.00267292,42287.0,42286.0,0.58202027]
[1644733699909,0.00267292,42287.0,42286.0,0.25137727]
[1644733700115,0.00267292,42287.0,42286.0,0.58202027]
[1644733700311,0.00267292,42287.0,42286.0,0.25137727]
[1644733700515,0.00267292,42287.0,42286.0,0.58202027]
[1644733700711,0.00267292,42287.0,42286.0,0.330643]
[1644733700911,0.00267292,42287.0,42286.0,0.58215164]
[1644733701110,0.00267292,42287.0,42286.0,0.330643]
[1644733701311,0.0002307,42291.0,42287.0,0.330643]
[1644733701512,0.20146028,42292.0,42289.0,0.26479762]
[1644733701711,0.0002307,42291.0,42289.0,0.26479762]
[1644733701912,0.20146028,42292.0,42289.0,0.26479762]
[1644733702174,0.20169098,42292.0,42289.0,0.26479762]
[1644733702375,0.20104493,42292.0,42289.0,0.26479762]
[1644733703079,0.27186744,42288.0,42287.0,0.54867619]
[1644733706817,0.27186744,42288.0,42287.0,0.21803319]
[1644733707016,0.27186744,42288.0,42287.0,0.54867619]
[1644733707620,0.27186744,42288.0,42287.0,0.330643]
[1644733707817,0.27186744,42288.0,42286.0,0.2515132]
[1644733708719,0.27186744,42288.0,42287.0,0.330643]
[1644733709563,0.27186744,42288.0,42287.0,0.20121618]
[1644733711466,0.27464823,42288.0,42287.0,0.20121618]
[1644733711868,0.5497044,42288.0,42286.0,0.20121618]
[1644733712069,0.27819148,42287.0,42286.0,0.20121618]
[1644733712471,0.27819148,42287.0,42285.0,0.20121618]
[1644733712672,0.51098133,42286.0,42285.0,0.20121618]
[1644733712870,0.51098133,42286.0,42283.0,0.20121618]
[1644733713528,0.51098133,42286.0,42282.0,0.20121618]
[1644733713723,0.71202626,42286.0,42281.0,0.20121618]
[1644733713922,0.20104493,42285.0,42280.0,0.20121618]
[1644733714523,0.71202626,42286.0,42281.0,0.20121618]
[1644733715123,0.71202626,42286.0,42280.0,0.20121618]
[1644733717061,0.51098133,42286.0,42279.0,0.20121618]
[1644733719465,0.51098133,42286.0,42278.0,0.20141007]
[1644733719666,0.51098133,42286.0,42278.0,0.20121618]
[1644733719867,0.51098133,42286.0,42278.0,0.20141007]
[1644733720070,0.51098133,42286.0,42279.0,0.20121618]
[1644733720270,0.51098133,42286.0,42279.0,0.20141007]
[1644733720470,0.51098133,42286.0,42278.0,0.20141007]
[1644733720673,0.51098133,42286.0,42279.0,0.20121618]
[1644733724962,0.330643,42285.0,42278.0,0.00019389]
[1644733725163,0.383743,42285.0,42277.0,0.00019389]
[1644733725363,0.58478793,42285.0,42277.0,0.00041548]
[1644733725561,0.58478793,42285.0,42277.0,0.00050449]
[1644733725763,0.58478793,42285.0,42277.0,0.0003106]
[1644733726362,0.58478793,42285.0,42275.0,0.00019389]
[1644733726565,0.58478793,42285.0,42274.0,0.20121618]
[1644733726762,0.25414493,42285.0,42274.0,0.20141007]
[1644733727062,0.0531,42285.0,42274.0,0.20141007]
[1644733727263,0.25414493,42285.0,42274.0,0.20141007]
[1644733727463,0.0531,42285.0,42274.0,0.20141007]
[1644733727864,0.51383119,42286.0,42276.0,0.20121618]
[1644733728164,0.51383119,42286.0,42277.0,0.20121618]
[1644733728165,0.29456601,42286.0,42277.0,0.20121618]
[1644733728414,0.29456601,42286.0,42276.0,0.20121618]
[1644733729014,0.29456601,42286.0,42275.0,0.20141007]
[1644733729219,0.21563972,42284.0,42275.0,0.20121618]
[1644733729816,0.21563972,42284.0,42274.0,0.20141007]
[1644733730018,0.26409815,42283.0,42275.0,0.00044555]
[1644733730220,0.00044547,42282.0,42275.0,0.00044555]
[1644733730420,0.00044547,42282.0,42275.0,0.00063944]
[1644733731020,0.26409815,42283.0,42275.0,0.00019389]
[1644733731221,0.26409815,42283.0,42275.0,0.20121618]
[1644733731418,0.00044547,42282.0,42275.0,0.20185562]
[1644733731620,0.00044547,42282.0,42275.0,0.20166173]
[1644733732362,0.26697667,42283.0,42275.0,0.20121618]
[1644733732563,0.00044547,42282.0,42275.0,0.20166173]
[1644733733364,0.19576714,42284.0,42276.0,0.5]
[1644733733662,0.19576714,42284.0,42276.0,0.00019389]
[1644733733663,0.00044547,42282.0,42276.0,0.00019389]
[1644733733866,0.00044547,42282.0,42275.0,0.20166173]